bitfinex-derivatives/quotes_SOLF0:USTF0_20250923
["timestamp","ask_amount","ask_price","bid_price","bid_amount"]
[1758630142413,1.90589977,218.96,218.88,9.24589977]
[1758630142611,7.51,218.95,218.88,9.24589977]
[1758630143108,7.51,218.95,218.88,7.34]
[1758630143313,7.51,218.95,218.87,4.1091]
[1758630144611,7.71,218.99,218.88,1.90589977]
[1758630144817,7.71,218.99,218.94,1.90589977]
[1758630145113,7.71,219.05,218.94,1.90589977]
[1758630145310,7.71,219.04,218.94,9.30589977]
[1758630145713,7.71,219.04,218.97,1.90589977]
[1758630147020,7.71,219.04,218.97,9.30589977]
[1758630147419,7.71,219.04,218.98,4.1069]
[1758630148818,7.71,219.04,218.97,9.30589977]
[1758630149219,1.90589977,219.03,218.97,7.4]
[1758630149520,1.90589977,219.03,218.97,11.5071]
[1758630150319,1.90589977,219.03,218.98,4.107]
[1758630150522,1.90589977,219.06,218.99,7.4]
[1758630151820,7.71,219.05,218.96,11.5075]
[1758630152419,7.71,219.05,218.97,4.1072]
[1758630153216,7.71,219.05,218.96,7.4]
[1758630153421,9.61589977,219.03,218.96,7.4]
[1758630154121,7.71,219.01,218.92,9.30589977]
[1758630155422,1.90589977,219.0,218.92,9.30589977]
[1758630156017,7.71,218.99,218.92,7.4]
[1758630156213,1.90589977,218.97,218.89,9.30589977]
[1758630156824,1.90589977,218.97,218.89,7.4]
[1758630157023,7.71,218.96,218.89,7.4]
[1758630157824,7.71,218.96,218.89,11.5088]
[1758630158017,7.71,218.96,218.89,7.4]
[1758630164132,9.61589977,219.01,218.92,7.4]
[1758630164427,4.1069,219.0,218.92,7.4]
[1758630164728,9.61589977,219.01,218.92,7.4]
[1758630165329,7.71,219.01,218.95,7.4]
[1758630166228,4.1059,219.05,218.98,7.4]
[1758630166424,11.8159,219.05,218.98,7.4]
[1758630166631,7.71,219.05,218.98,7.4]
[1758630168626,7.71,219.02,218.94,11.5077]
[1758630168826,7.71,219.02,218.94,7.4]
[1758630169839,11.8164,219.02,218.95,4.1076]
[1758630171734,11.8164,219.02,218.94,7.4]
[1758630172235,11.8164,219.02,218.94,11.5077]
[1758630172435,11.8164,219.02,218.94,7.4]
[1758630173234,7.71,219.02,218.96,4.1074]
[1758630174337,7.71,219.02,218.94,7.4]
[1758630174536,7.29,218.99,218.88,7.5]
[1758630174934,9.19589977,219.06,218.97,11.6072]
[1758630175140,9.19589977,219.06,218.97,7.5]
[1758630175938,9.19589977,219.06,218.99,4.1067]
[1758630176941,9.19589977,219.06,219.01,4.1065]
[1758630177142,1.90589977,219.06,219.02,7.5]
[1758630177435,391.15109977,219.09,219.02,7.5]
[1758630177740,41.96589977,219.09,219.03,4.106]
[1758630178641,40.06,219.09,219.06,7.5]
[1758630178942,40.06,219.09,219.05,4.1058]
[1758630179137,40.06,219.09,219.06,7.5]
[1758630179342,1.90589977,219.12,219.06,7.5]
[1758630180542,13.30019977,219.13,219.06,7.5]
[1758630180742,7.29,219.06,218.98,7.5]
[1758630180943,9.19589977,219.06,218.98,7.5]
[1758630182847,9.19589977,219.06,218.98,11.607]
[1758630183139,9.19589977,219.06,218.98,7.5]
[1758630183344,6.01089977,219.09,218.98,1.90589977]
[1758630183544,6.01089977,219.09,218.99,7.5]
[1758630183944,7.29,219.05,218.99,7.5]
[1758630184644,1.90589977,219.03,218.96,4.1074]
[1758630184846,7.29,219.02,218.96,4.1074]
[1758630185949,7.29,219.02,218.95,7.5]
[1758630186147,9.19589977,219.0,218.9,7.5]
[1758630186748,1.90589977,218.97,218.9,7.5]
[1758630187750,1.90589977,218.97,218.9,11.6086]
[1758630188047,7.29,218.96,218.9,7.5]
[1758630188949,7.29,218.96,218.89,92.55909739]
[1758630189148,7.29,218.96,218.86,9.40589977]
[1758630189550,7.29,219.0,218.87,7.5]
[1758630189745,1.90589977,218.97,218.87,7.5]
[1758630189951,7.29,218.98,218.88,7.5]
[1758630190442,7.29,218.98,218.89,4.1086]
[1758630191046,7.29,218.98,218.91,7.5]
[1758630191748,11.3964,219.02,218.93,1.90589977]
[1758630191949,11.3964,219.02,218.93,7.5]
[1758630192147,11.3964,219.02,218.95,1.90589977]
[1758630192351,4.1067,219.01,218.95,1.90589977]
[1758630192550,7.29,219.0,218.93,7.5]
[1758630193053,7.29,219.01,218.89,11.6087]
[1758630193247,112.3,219.0,218.89,11.6087]
[1758630193447,7.29,218.96,218.86,4.1092]
[1758630193852,7.29,218.96,218.87,7.5]
[1758630194354,11.3975,218.96,218.87,11.609]
[1758630195151,7.29,218.94,218.84,4.1096]
[1758630195753,4.1081,218.93,218.84,4.1096]
[1758630196151,11.5184,218.92,218.83,7.5]
[1758630196353,7.41,218.92,218.83,7.5]
[1758630196855,7.41,218.92,218.85,4.1094]
[1758630197060,7.41,218.92,218.83,7.5]
[1758630197750,7.41,218.92,218.85,4.1095]
[1758630199160,7.41,218.92,218.83,11.6099]
[1758630200259,7.41,218.92,218.8,7.41]
[1758630201159,4.1086,218.91,218.82,4.11]
[1758630201360,7.41,218.9,218.82,4.11]
[1758630204862,4.1088,218.89,218.8,7.41]
[1758630205265,7.43,218.88,218.8,7.41]
[1758630206064,7.43,218.88,218.79,4.1105]
[1758630206560,4.1093,218.87,218.79,4.1105]
[1758630206765,7.43,218.86,218.8,4.1103]
[1758630210966,7.43,218.86,218.81,4.1102]
[1758630211165,7.43,218.86,218.81,11.6002]
[1758630211366,7.43,218.87,218.81,11.6002]
[1758630212865,7.43,218.94,218.82,63.9356]
[1758630213166,7.43,218.94,218.83,7.49]
[1758630213467,21.05569785,218.94,218.83,7.49]
[1758630213666,21.05569785,218.94,218.85,4.1095]
[1758630214368,25.16359785,218.94,218.86,4.1092]
[1758630215168,7.43,218.92,218.86,4.1092]
[1758630215368,7.43,218.92,218.83,7.49]
[1758630216770,11.5383,218.92,218.84,4.1096]
[1758630217070,7.43,218.92,218.83,7.49]
[1758630217372,11.5383,218.92,218.85,4.1094]
[1758630218371,71.3369,218.92,218.79,7.49]
[1758630219771,7.43,218.92,218.79,7.49]
[1758630220366,11.5393,218.87,218.79,11.6006]
[1758630222977,7.43,218.87,218.79,11.6006]
[1758630223675,7.43,218.87,218.8,4.1103]
[1758630225872,8.22551949,218.87,218.8,4.1103]
[1758630229679,8.22551949,218.87,218.81,4.1101]
[1758630230881,0.79551949,218.87,218.84,7.49]
[1758630231083,7.43,218.91,218.82,7.49]
[1758630231274,8.22543766,218.91,218.82,7.49]
[1758630231778,8.22543766,218.91,218.87,7.49]
[1758630234281,0.79543766,218.91,218.87,7.49]
[1758630234485,7.58,218.9,218.87,7.49]
[1758630234984,7.58,218.9,218.84,11.4597]
[1758630235486,7.58,218.9,218.85,11.4594]
[1758630235680,7.58,218.9,218.85,4.1094]
[1758630235882,0.79543766,218.91,218.86,7.35]
[1758630236083,7.58,218.9,218.86,7.35]
[1758630236584,7.58,218.9,218.83,4.1099]
[1758630236784,7.58,218.9,218.82,7.35]
[1758630237285,4.1088,218.89,218.82,11.46]
[1758630237485,7.58,218.88,218.82,11.46]
[1758630238286,7.58,218.88,218.83,4.1098]
[1758630238484,7.58,218.88,218.84,7.35]
[1758630238881,4.90393766,218.91,218.85,7.35]
[1758630238882,12.48393766,218.91,218.85,7.35]
[1758630239088,8.37543766,218.91,218.85,7.35]
[1758630239991,8.37543766,218.91,218.85,11.4594]
[1758630240290,8.37543766,218.91,218.85,7.35]
[1758630240485,8.37543766,218.91,218.81,2.98195933]
[1758630240781,8.37543766,218.91,218.82,7.35]
[1758630241789,4.1087,218.9,218.83,4.1099]
[1758630243086,7.58,218.89,218.83,4.1099]
[1758630243291,11.6889,218.89,218.83,4.1099]
[1758630247496,11.6889,218.89,218.82,7.35]
[1758630247690,4.1091,218.88,218.82,7.35]
[1758630248090,11.6891,218.88,218.82,7.35]
[1758630249495,0.79543766,218.91,218.8,63.9403]
[1758630249700,0.79543766,218.91,218.82,7.35]
[1758630249999,7.58,218.9,218.82,7.35]
[1758630250707,7.58,218.9,218.85,4.1094]
[1758630251004,8.37543766,218.91,218.85,11.4594]
[1758630252904,8.37543766,218.91,218.86,4.1092]
[1758630253099,7.22,218.9,218.86,11.5592]
[1758630254198,0.79543766,218.91,218.86,11.5592]
[1758630254400,7.22,218.9,218.86,11.5592]
[1758630254900,7.22,218.9,218.86,4.1092]
[1758630255094,7.22,218.9,218.87,7.45]
[1758630256202,0.79543766,218.91,218.85,7.45]
[1758630257500,0.79543766,218.91,218.87,7.45]
[1758630257703,8.01543766,218.91,218.87,7.45]
[1758630257901,8.01543766,218.91,218.87,11.5591]
[1758630258101,0.79543766,218.91,218.86,1.90990473]
[1758630258300,35.34,218.99,218.89,1.90990473]
[1758630258504,0.79521954,218.97,218.9,9.35990473]
[1758630258799,1.90990473,218.96,218.86,7.45]
[1758630259006,7.22,218.92,218.82,9.35990473]
[1758630259408,11.3284,218.92,218.84,4.1096]
[1758630259606,11.3284,218.92,218.82,1.90990473]
[1758630259808,11.3284,218.92,218.83,7.45]
[1758630260204,11.3284,218.92,218.85,4.1094]
[1758630260410,7.22,218.96,218.87,1.90990473]
[1758630260706,7.22,218.96,218.91,4.1083]
[1758630260902,0.79521954,218.97,218.91,11.5583]
[1758630263206,4.90271954,218.97,218.91,7.45]
[1758630263411,11.97271954,218.97,218.91,7.45]
[1758630264410,4.1076,218.96,218.91,7.45]
[1758630264610,7.07,218.95,218.91,7.45]
[1758630265406,7.07,218.95,218.82,86.8939]
[1758630265407,6.01750473,218.96,218.88,4.1089]
[1758630265709,7.07,218.92,218.82,7.49]
[1758630265906,7.07,218.89,218.82,7.49]
[1758630266814,11.1789,218.89,218.82,11.6]
[1758630268212,7.07,218.96,218.85,7.49]
[1758630268411,8.97990473,218.96,218.85,7.49]
[1758630268908,7.07,218.96,218.85,7.49]
[1758630269105,7.07,218.93,218.85,7.49]
[1758630269817,4.1084,218.92,218.85,7.49]
[1758630270417,0.79521954,218.97,218.87,7.49]
[1758630270619,7.86521954,218.97,218.89,1.90990473]
[1758630271420,11.97251954,218.97,218.89,1.90990473]
[1758630272319,11.97251954,218.97,218.89,6.01850473]
[1758630272818,11.97251954,218.97,218.87,7.49]
[1758630273022,11.97251954,218.97,218.88,1.90990473]
[1758630274219,4.1076,218.96,218.89,4.1087]
[1758630274517,7.07,218.95,218.89,4.1087]
[1758630275017,0.79521954,218.97,218.9,7.49]
[1758630275407,0.79521954,218.97,218.91,1.90990473]
[1758630276819,0.79521954,218.97,218.91,6.01820473]
[1758630278118,0.79521954,218.97,218.95,7.49]
[1758630278419,0.79499246,219.01,218.95,7.49]
[1758630279018,0.79499246,219.01,218.99,7.49]
[1758630279322,7.07,219.06,218.99,7.49]
[1758630279512,0.79481997,219.05,218.99,7.49]
[1758630279710,0.79481997,219.05,218.97,1.90990473]
[1758630279916,7.07,219.04,218.97,1.90990473]
[1758630280320,7.07,219.04,218.95,7.49]
[1758630280822,7.07,219.04,218.95,11.5976]
[1758630282721,7.07,219.04,218.95,13.50750473]
[1758630283817,7.07,219.01,218.93,4.108]
[1758630284524,7.07,219.01,218.92,7.49]
[1758630284525,1.90990473,218.99,218.92,7.49]
[1758630284721,7.07,218.98,218.88,7.49]
[1758630284921,1.90990473,218.96,218.88,7.49]
[1758630286418,7.07,218.95,218.88,7.49]
[1758630289123,8.97990473,218.95,218.88,7.49]
[1758630291527,7.07,218.95,218.88,7.49]
[1758630291929,4.1069,219.0,218.9,7.49]
[1758630292227,8.97990473,219.01,218.92,7.49]
[1758630292428,11.1772,218.98,218.92,7.49]
[1758630294323,7.07,218.98,218.92,7.49]
[1758630295825,4.1073,218.97,218.92,7.49]
[1758630296024,11.6273,218.97,218.89,1.90990473]
[1758630296528,11.6273,218.97,218.89,6.01850473]
[1758630298632,11.6273,218.97,218.89,4.1086]
[1758630298833,11.6273,218.97,218.9,7.34]
[1758630301235,7.52,218.95,218.83,7.34]
[1758630301424,9.42990473,218.95,218.81,7.34]
[1758630301734,13.53770473,218.95,218.82,1.90990473]
[1758630302033,9.42990473,218.95,218.83,7.34]
[1758630302542,4.1082,218.93,218.86,4.1092]
[1758630302834,7.52,218.92,218.85,7.34]
[1758630303036,4.1089,218.89,218.85,7.34]
[1758630303335,7.52,218.91,218.81,11.4501]
[1758630304234,1.90990473,218.92,218.81,7.34]
[1758630304535,9.42990473,218.92,218.81,7.34]
[1758630304737,9.42990473,218.92,218.83,7.34]
[1758630305835,13.53820473,218.92,218.83,11.4498]
[1758630306137,7.52,218.92,218.83,7.34]
[1758630307135,11.6284,218.92,218.85,4.1095]
[1758630308533,11.6284,218.92,218.86,4.1092]
[1758630308735,13.53830473,218.92,218.86,11.4492]
[1758630310838,7.29,218.96,218.86,7.34]
[1758630311843,7.29,218.96,218.91,4.1083]
[1758630312031,7.29,218.96,218.92,7.69]
[1758630312231,7.29,218.96,218.91,4.1083]
[1758630312528,4.1072,218.98,218.92,7.69]
[1758630313541,4.1072,218.98,218.92,11.7981]
[1758630314933,11.3968,219.0,218.92,11.7981]
[1758630315137,7.29,219.0,218.93,4.1079]
[1758630315735,7.29,219.0,218.91,7.69]
[1758630315935,7.29,219.04,218.91,7.69]
[1758630316737,10.27247683,219.04,218.91,7.69]
[1758630316935,7.29,219.02,218.91,7.69]
[1758630319844,11.3972,218.98,218.91,7.69]
[1758630320547,7.29,218.98,218.92,4.1082]
[1758630321342,4.1067,219.0,218.93,7.69]
[1758630321547,4.1067,219.0,218.93,11.7979]
[1758630324254,70.9953,219.03,218.91,4.1084]
[1758630325054,4.1074,218.97,218.9,7.38]
[1758630326249,7.12,218.98,218.9,4.1085]
[1758630326454,7.12,218.98,218.91,7.38]
[1758630327658,11.2272,218.98,218.91,7.38]
[1758630329559,4.1074,218.97,218.91,7.38]
[1758630330052,4.1076,218.96,218.91,7.38]
[1758630330259,4.1076,218.96,218.9,11.4885]
[1758630333660,4.1076,218.96,218.9,7.38]
[1758630333857,4.1078,218.95,218.89,7.38]
[1758630334362,4.1078,218.95,218.89,11.4887]
[1758630335861,4.1078,218.95,218.89,7.38]
[1758630337257,63.8897,218.98,218.89,7.38]
[1758630337461,7.12,218.97,218.85,11.4895]
[1758630337862,63.8897,218.98,218.85,11.4895]
[1758630338763,4.1084,218.92,218.85,11.4895]
[1758630342669,4.1085,218.91,218.85,11.4895]
[1758630343568,11.2281,218.93,218.86,4.1093]
[1758630343766,11.2281,218.93,218.87,7.38]
[1758630345172,7.12,218.99,218.87,7.38]
[1758630346771,4.1074,218.97,218.89,4.1088]
[1758630346972,4.1074,218.97,218.9,7.38]
[1758630348074,11.2269,218.99,218.89,2.98247683]
[1758630348371,11.2269,218.99,218.9,7.38]
[1758630348671,4.1072,218.98,218.92,4.1081]
[1758630350175,4.1072,218.98,218.92,11.4881]
[1758630350476,7.12,219.04,218.93,7.38]
[1758630351775,11.2261,219.04,218.96,4.1074]
[1758630351972,11.2261,219.04,218.96,11.4874]
[1758630355782,4.1063,219.03,218.96,11.4874]
[1758630360481,4.1063,219.03,218.96,4.1074]
[1758630360682,7.12,219.04,218.97,11.3071]
[1758630360870,7.12,219.04,218.98,7.2]
[1758630361074,94.0606726,219.09,218.99,2.98247683]
[1758630361382,11.3251,219.09,219.02,7.2]
[1758630362780,11.3251,219.09,219.02,11.3062]
[1758630363178,11.3251,219.09,219.02,7.2]
[1758630365784,4.1054,219.08,219.02,7.2]
[1758630366079,7.22,219.09,218.99,2.98247683]
[1758630366279,7.22,219.09,218.99,10.18247683]
[1758630366481,14.41592772,219.1,218.99,10.18247683]
[1758630366677,7.22,219.09,218.99,10.18247683]
[1758630366878,7.22,219.06,218.99,14.28927683]
[1758630367281,7.22,219.06,218.99,11.3068]
[1758630368184,7.22,219.06,218.99,7.2]
[1758630368380,7.22,219.06,218.94,7.2]
[1758630368886,4.1063,219.03,218.96,4.1074]
[1758630369184,4.1063,219.03,218.97,7.2]
[1758630370082,7.22,219.02,218.92,7.2]
[1758630370383,10.20247683,219.02,218.92,7.2]
[1758630371085,2.98247683,219.01,218.92,7.2]
[1758630371283,7.2,219.0,218.92,7.2]
[1758630371585,4.1072,218.98,218.92,7.2]
[1758630371984,7.2,219.0,218.92,7.2]
[1758630372586,10.18247683,219.06,218.91,7.64]
[1758630373381,4.1063,219.03,218.95,4.1075]
[1758630373583,4.1063,219.03,218.96,7.64]
[1758630374483,7.2,219.04,218.96,7.64]
[1758630374788,4.1058,219.05,218.98,7.64]
[1758630375690,11.3055,219.07,218.98,7.64]
[1758630376689,11.3055,219.07,218.98,9.54738525]
[1758630376984,7.2,219.07,219.01,1.90738525]
[1758630377289,4.1051,219.09,219.02,7.64]
[1758630377690,7.99470199,219.1,219.02,7.64]
[1758630378889,7.99470199,219.1,219.03,4.1061]
[1758630379085,7.99470199,219.1,219.04,1.90738525]
[1758630379292,7.99470199,219.1,219.04,9.54738525]
[1758630379590,7.2,219.1,219.04,9.54738525]
[1758630380491,0.79462033,219.13,219.04,9.54738525]
[1758630380690,0.79462033,219.13,219.05,4.1058]
[1758630381190,0.79462033,219.13,219.06,7.64]
[1758630382286,7.2,219.14,219.07,1.90738525]
[1758630383496,4.104,219.15,219.08,7.53]
[1758630383697,4.1042,219.14,219.08,7.53]
[1758630383896,7.58,219.13,219.08,7.53]
[1758630384195,11.6842,219.14,219.08,7.53]
[1758630385100,7.58,219.12,219.01,34.6]
[1758630385293,7.58,219.12,219.06,1.90738525]
[1758630387303,11.6847,219.12,219.06,1.90738525]
[1758630389203,4.1041,219.15,219.09,1.90738525]
[1758630389703,8.37451148,219.16,219.09,1.90738525]
[1758630390201,8.37451148,219.16,219.1,7.53]
[1758630390406,8.37451148,219.16,219.12,9.43738525]
[1758630390808,7.58,219.16,219.12,9.43738525]
[1758630391007,7.58,219.16,219.13,7.53]
[1758630391809,7.58,219.18,219.12,1.90738525]
[1758630392806,11.6835,219.18,219.12,1.90738525]
[1758630393508,4.1037,219.17,219.09,7.53]
[1758630393710,7.58,219.16,219.1,1.90738525]
[1758630396614,4.104,219.15,219.1,1.90738525]
[1758630397111,7.58,219.14,219.1,1.90738525]
[1758630397512,4.104,219.15,219.1,1.90738525]
[1758630397707,63.831,219.18,219.08,1.90738525]
[1758630397912,7.58,219.17,219.08,1.90738525]
[1758630398813,4.1044,219.13,219.08,1.90738525]
[1758630399014,7.58,219.12,219.08,1.90738525]
[1758630399210,7.58,219.12,219.08,9.43738525]
[1758630399911,7.58,219.12,219.09,7.53]
[1758630403912,11.6842,219.14,219.07,6.01268525]
[1758630405019,4.1045,219.12,219.07,1.90738525]
[1758630405516,7.58,219.11,219.07,1.90738525]
[1758630405713,7.58,219.11,219.07,9.43738525]
[1758630406417,4.1045,219.12,219.07,9.43738525]
[1758630406918,4.1045,219.12,219.07,7.53]
[1758630407116,7.58,219.11,219.07,7.53]
[1758630407517,7.58,219.11,219.05,6.01308525]
[1758630408114,7.58,219.11,219.06,7.53]
[1758630408314,7.58,219.11,219.05,6.01308525]
[1758630408721,7.58,219.11,219.05,13.54308525]
[1758630409019,11.6848,219.11,219.05,7.53]
[1758630410217,7.58,219.11,219.05,7.53]
[1758630410816,7.58,219.11,219.05,11.6357]
[1758630412822,11.6848,219.11,219.05,11.6357]
[1758630414624,11.6848,219.11,219.05,7.53]
[1758630414824,7.57,219.09,219.03,6.01348525]
[1758630415322,7.57,219.09,219.04,4.1059]
[1758630415624,7.57,219.09,219.05,7.66]
[1758630420026,4.105,219.1,219.05,7.66]
[1758630420231,1.90738525,219.11,219.05,7.66]
[1758630420421,63.8464,219.13,218.99,7.66]
[1758630420422,7.57,219.06,218.99,7.66]
[1758630421526,1.90738525,219.09,219.01,7.66]
[1758630421827,6.01248525,219.09,219.03,4.1061]
[1758630422025,7.57,219.08,219.01,7.66]
[1758630422221,7.57,219.06,219.01,7.66]
[1758630422422,9.47738525,219.07,219.01,7.66]
[1758630424836,7.57,219.06,218.97,7.66]
[1758630425936,4.106,219.05,218.99,4.1068]
[1758630426235,7.57,219.06,218.97,7.66]
[1758630426537,7.57,219.06,218.98,1.90738525]
[1758630427236,1.90738525,219.09,219.01,7.66]
[1758630428835,6.01248525,219.09,219.03,4.1061]
[1758630429236,7.57,219.08,219.03,4.1061]
[1758630429535,13.58248525,219.09,219.03,11.7661]
[1758630430832,7.57,219.08,219.05,7.66]
[1758630431032,4.1047,219.11,219.04,7.66]
[1758630431436,4.1044,219.13,219.07,4.1052]
[1758630431636,11.6744,219.13,219.07,4.1052]
[1758630432438,4.1046,219.12,219.07,4.1052]
[1758630432632,11.7146,219.12,219.05,11.7657]
[1758630433027,1.90738525,219.11,218.98,7.23]
[1758630433338,7.61,219.09,219.01,7.23]
[1758630433536,7.61,219.09,219.03,7.23]
[1758630434538,4.1048,219.11,219.02,1.90738525]
[1758630434738,4.1048,219.11,219.04,1.90738525]
[1758630435840,4.1048,219.11,219.06,11.3355]
[1758630435841,7.61,219.1,219.06,11.3355]
[1758630436041,11.715,219.1,219.02,1.90738525]
[1758630436239,11.715,219.1,219.03,7.23]
[1758630436935,7.61,219.1,219.03,7.23]
[1758630437142,7.61,219.07,218.99,7.23]
[1758630437944,11.7156,219.07,219.01,4.1064]
[1758630438732,11.7156,219.07,219.03,7.23]
[1758630439444,4.1051,219.09,218.99,7.23]
[1758630439643,7.61,219.11,218.99,2.97997775]
[1758630439842,7.61,219.11,219.0,7.23]
[1758630440842,4.105,219.1,219.04,4.1059]
[1758630441244,7.61,219.1,219.0,7.23]
[1758630441446,11.7156,219.07,219.01,4.1064]
[1758630444347,7.61,219.07,219.03,4.1062]
[1758630446249,7.61,219.07,219.04,7.43]
[1758630447347,7.61,219.07,219.03,4.1062]
[1758630447544,11.0847,219.12,219.05,7.43]
[1758630448748,11.0847,219.12,219.06,4.1055]
[1758630448952,4.1048,219.11,219.05,7.43]
[1758630454252,6.98,219.14,219.02,4.1063]
[1758630454559,6.98,219.14,219.02,7.43]
[1758630455757,4.105,219.1,219.03,4.1061]
[1758630455958,4.105,219.1,219.04,7.43]
[1758630456659,4.1044,219.13,219.04,7.43]
[1758630457161,6.98,219.18,219.04,7.43]
[1758630457762,6.98,219.18,219.06,2.97997775]
[1758630458462,6.98,219.18,219.07,7.43]
[1758630458762,6.98,219.18,219.1,7.43]
[1758630459461,4.1028,219.21,219.1,7.43]
[1758630460758,4.1028,219.21,219.14,4.104]
[1758630460954,4.1028,219.21,219.14,11.534]
[1758630462062,4.1028,219.21,219.15,4.1038]
[1758630462266,6.98,219.22,219.15,4.1038]
[1758630467968,6.98,219.22,219.14,7.43]
[1758630468464,4.103,219.2,219.14,7.43]
[1758630469067,11.083,219.2,219.14,7.43]
[1758630469666,6.98,219.2,219.1,4.1048]
[1758630471170,6.98,219.2,219.11,7.43]
[1758630471372,4.1035,219.18,219.11,11.5345]
[1758630472273,11.0835,219.18,219.11,11.5345]
[1758630473375,7.23,219.17,219.11,11.5345]
[1758630475174,11.3337,219.17,219.09,4.105]
[1758630475871,4.104,219.15,219.07,11.7953]
[1758630478175,7.23,219.16,219.07,7.69]
[1758630478776,7.23,219.16,219.07,11.7953]
[1758630479176,7.23,219.16,219.07,7.69]
[1758630480079,7.23,219.16,219.08,4.1051]
[1758630480279,7.23,219.16,219.07,7.69]
[1758630480677,4.104,219.15,219.07,11.7953]
[1758630480882,4.104,219.15,219.07,7.69]
[1758630481781,4.104,219.15,219.08,4.1051]
[1758630483676,7.23,219.14,219.08,4.1051]
[1758630483885,7.23,219.14,219.03,7.69]
[1758630483886,10.20997775,219.14,219.03,7.69]
[1758630484276,4.105,219.1,219.03,11.7961]
[1758630484476,11.335,219.1,219.03,11.7961]
[1758630484678,11.335,219.1,219.03,7.69]
[1758630485282,7.23,219.1,219.04,4.1058]
[1758630486078,7.23,219.1,219.0,58.02]
[1758630486079,7.23,219.15,219.06,7.69]
[1758630486786,7.23,219.15,219.07,4.1054]
[1758630486787,4.1043,219.14,219.07,4.1054]
[1758630486981,7.23,219.13,219.07,4.1054]
[1758630487178,7.23,219.13,219.06,7.69]
[1758630487382,4.1046,219.12,219.06,7.69]
[1758630488081,7.23,219.1,219.06,7.69]
[1758630489887,11.335,219.1,219.03,4.1061]
[1758630490083,11.335,219.1,219.03,11.7961]
[1758630491286,7.23,219.07,219.03,7.69]
[1758630491482,7.55,219.07,219.03,7.69]
[1758630491884,4.1053,219.08,219.03,7.69]
[1758630492285,7.55,219.07,219.03,7.69]
[1758630492490,7.55,219.09,219.03,7.69]
[1758630497290,11.6552,219.09,219.03,7.69]
[1758630498792,1.90689894,219.1,219.03,7.69]
[1758630498996,1.90689894,219.15,219.07,7.6]
[1758630499292,7.55,219.16,219.07,7.6]
[1758630500895,4.104,219.15,219.08,4.1051]
[1758630501295,7.55,219.16,219.09,7.6]
[1758630501695,7.55,219.16,219.09,11.705]
[1758630502794,11.6538,219.16,219.09,7.6]
[1758630502994,9.45689894,219.16,219.09,7.6]
[1758630503798,4.104,219.15,219.09,7.6]
[1758630504591,9.45689894,219.16,219.09,7.6]
[1758630505798,13.56069894,219.16,219.09,7.6]
[1758630506800,4.1041,219.15,219.09,7.6]
[1758630511701,7.55,219.16,219.09,9.50689894]
[1758630513407,7.55,219.16,219.09,13.61179894]
[1758630514305,11.6539,219.16,219.09,13.61179894]
[1758630514606,7.55,219.16,219.09,9.50689894]